Workbook

Sheet cenník ZPS
A1: Cenník sociálnej služby ZPS a SZ
A2: platný od 01.02.2024
A3: Klient ubytovaný v dvojposteľovej izbe / rácionálna strava
B5: Denná úhrada za stravovanie v eurách | C5: Denná úhrada za ubytovanie v eurách | D5: Denná úhrada za záujmovú činnosť v eurách | E5: Denná úhrada za upratovanie, pranie,... v eurách | F5: Denná úhrada za pomoc pri odkázanosti | G5: Spolu úhrada/1deň v eurách
B6: 6 | C6: 4 | D6: 3.1 | E6: 2.1 | F6: 3.3 | G6: =SUM(B6:F6) -> 18.5
A8: Počet dní v mesiaci | B8: Úhrada za stravovanie v eurách/1mesiac | C8: Úhrada za ubytovanie v eurách/1 mesiac | D8: Úhrada za záujmovú činnosť v eurách/1 mesiac | E8: Úhrada za upratovanie, pranie,... v eurách/1mesiac | F8: Úhrada za pomoc pri odkázanosti v eurách/1 mesiac | G8: Spolu úhrada/1 mesiac v eurách
A9: 28 | B9: =B6*A9 -> 168 | C9: =C6*A9 -> 112 | D9: =D6*A9 -> 86.8 | E9: =E6*A9 -> 58.8 | F9: =F6*A9 -> 92.4 | G9: =SUM(B9:F9) -> 518
A10: 29 | B10: =B6*A10 -> 174 | C10: =C6*A10 -> 116 | D10: =D6*A10 -> 89.9 | E10: =E6*A10 -> 60.9 | F10: =F6*A10 -> 95.7 | G10: =SUM(B10:F10) -> 536.5
A11: 30 | B11: =B6*A11 -> 180 | C11: =C6*A11 -> 120 | D11: =D6*A11 -> 93 | E11: =E6*A11 -> 63 | F11: =F6*A11 -> 99 | G11: =SUM(B11:F11) -> 555
A12: 31 | B12: =B6*A12 -> 186 | C12: =C6*A12 -> 124 | D12: =D6*A12 -> 96.1 | E12: =E6*A12 -> 65.1 | F12: =F6*A12 -> 102.3 | G12: =SUM(B12:F12) -> 573.5
A14: Klient ubytovaný v dvojposteľovej izbe / diabetická strava
B16: Denná úhrada za stravovanie v eurách | C16: Denná úhrada za ubytovanie v eurách | D16: Denná úhrada za záujmovú činnosť v eurách | E16: Denná úhrada za upratovanie, pranie,... v eurách | F16: Denná úhrada za pomoc pri odkázanosti | G16: Spolu úhrada/1deň v eurách
B17: 7 | C17: 4 | D17: 3.1 | E17: 2.1 | F17: 3.3 | G17: =SUM(B17:F17) -> 19.5
A19: Počet dní v mesiaci | B19: Úhrada za stravovanie v eurách/1mesiac | C19: Úhrada za ubytovanie v eurách/1 mesiac | D19: Úhrada za záujmovú činnosť v eurách/1 mesiac | E19: Úhrada za upratovanie, pranie,... v eurách/1mesiac | F19: Úhrada za pomoc pri odkázanosti v eurách/1 mesiac | G19: Spolu úhrada/1 mesiac v eurách
A20: 28 | B20: =B17*A20 -> 196 | C20: =C17*A20 -> 112 | D20: =D17*A20 -> 86.8 | E20: =E17*A20 -> 58.8 | F20: =F17*A20 -> 92.4 | G20: =SUM(B20:F20) -> 546
A21: 29 | B21: =B17*A21 -> 203 | C21: =C17*A21 -> 116 | D21: =D17*A21 -> 89.9 | E21: =E17*A21 -> 60.9 | F21: =F17*A21 -> 95.7 | G21: =SUM(B21:F21) -> 565.5
A22: 30 | B22: =B17*A22 -> 210 | C22: =C17*A22 -> 120 | D22: =D17*A22 -> 93 | E22: =E17*A22 -> 63 | F22: =F17*A22 -> 99 | G22: =SUM(B22:F22) -> 585
A23: 31 | B23: =B17*A23 -> 217 | C23: =C17*A23 -> 124 | D23: =D17*A23 -> 96.1 | E23: =E17*A23 -> 65.1 | F23: =F17*A23 -> 102.3 | G23: =SUM(B23:F23) -> 604.5
A25: Klient ubytovaný v trojposteľovej izbe / racionálna strava
B27: Denná úhrada za stravovanie v eurách | C27: Denná úhrada za ubytovanie v eurách | D27: Denná úhrada za záujmovú činnosť v eurách | E27: Denná úhrada za upratovanie, pranie,... v eurách | F27: Denná úhrada za pomoc pri odkázanosti | G27: Spolu úhrada/1deň v eurách
B28: 6 | C28: 3.6 | D28: 3.1 | E28: 2.1 | F28: 3.3 | G28: =SUM(B28:F28) -> 18.1
A30: Počet dní v mesiaci | B30: Úhrada za stravovanie v eurách/1mesiac | C30: Úhrada za ubytovanie v eurách/1 mesiac | D30: Úhrada za záujmovú činnosť v eurách/1 mesiac | E30: Úhrada za upratovanie, pranie,... v eurách/1mesiac | F30: Úhrada za pomoc pri odkázanosti v eurách/1 mesiac | G30: Spolu úhrada/1 mesiac v eurách
A31: 28 | B31: =B28*A31 -> 168 | C31: =C28*A31 -> 100.8 | D31: =D28*A31 -> 86.8 | E31: =E28*A31 -> 58.8 | F31: =F28*A31 -> 92.4 | G31: =SUM(B31:F31) -> 506.8
A32: 29 | B32: =B28*A32 -> 174 | C32: =C28*A32 -> 104.4 | D32: =D28*A32 -> 89.9 | E32: =E28*A32 -> 60.9 | F32: =F28*A32 -> 95.7 | G32: =SUM(B32:F32) -> 524.9
A33: 30 | B33: =B28*A33 -> 180 | C33: =C28*A33 -> 108 | D33: =D28*A33 -> 93 | E33: =E28*A33 -> 63 | F33: =F28*A33 -> 99 | G33: =SUM(B33:F33) -> 543
A34: 31 | B34: =B28*A34 -> 186 | C34: =C28*A34 -> 111.6 | D34: =D28*A34 -> 96.1 | E34: =E28*A34 -> 65.1 | F34: =F28*A34 -> 102.3 | G34: =SUM(B34:F34) -> 561.1
A38: Klient ubytovaný v trojposteľovej izbe / diabetická strava
B40: Denná úhrada za stravovanie v eurách | C40: Denná úhrada za ubytovanie v eurách | D40: Denná úhrada za záujmovú činnosť v eurách | E40: Denná úhrada za upratovanie, pranie,... v eurách | F40: Denná úhrada za pomoc pri odkázanosti | G40: Spolu úhrada/1deň v eurách
B41: 7 | C41: 3.6 | D41: 3.1 | E41: 2.1 | F41: 3.3 | G41: =SUM(B41:F41) -> 19.1
A43: Počet dní v mesiaci | B43: Úhrada za stravovanie v eurách/1mesiac | C43: Úhrada za ubytovanie v eurách/1 mesiac | D43: Úhrada za záujmovú činnosť v eurách/1 mesiac | E43: Úhrada za upratovanie, pranie,... v eurách/1mesiac | F43: Úhrada za pomoc pri odkázanosti v eurách/1 mesiac | G43: Spolu úhrada/1 mesiac v eurách
A44: 28 | B44: =B41*A44 -> 196 | C44: =C41*A44 -> 100.8 | D44: =D41*A44 -> 86.8 | E44: =E41*A44 -> 58.8 | F44: =F41*A44 -> 92.4 | G44: =SUM(B44:F44) -> 534.8
A45: 29 | B45: =B41*A45 -> 203 | C45: =C41*A45 -> 104.4 | D45: =D41*A45 -> 89.9 | E45: =E41*A45 -> 60.9 | F45: =F41*A45 -> 95.7 | G45: =SUM(B45:F45) -> 553.9
A46: 30 | B46: =B41*A46 -> 210 | C46: =C41*A46 -> 108 | D46: =D41*A46 -> 93 | E46: =E41*A46 -> 63 | F46: =F41*A46 -> 99 | G46: =SUM(B46:F46) -> 573
A47: 31 | B47: =B41*A47 -> 217 | C47: =C41*A47 -> 111.6 | D47: =D41*A47 -> 96.1 | E47: =E41*A47 -> 65.1 | F47: =F41*A47 -> 102.3 | G47: =SUM(B47:F47) -> 592.1
A49: Klient samoplatca
B51: Denná úhrada za stravovanie v eurách | C51: Denná úhrada za ubytovanie v eurách | D51: Denná úhrada za záujmovú činnosť v eurách | E51: Denná úhrada za upratovanie, pranie,... v eurách | F51: Denná úhrada za pomoc pri odkázanosti | G51: Spolu úhrada/1deň v eurách
B52: 9.7 | C52: 6 | D52: 4.4 | E52: 3.1 | F52: 5.7 | G52: =SUM(B52:F52) -> 28.9
A54: Počet dní v mesiaci | B54: Úhrada za stravovanie v eurách/1mesiac | C54: Úhrada za ubytovanie v eurách/1 mesiac | D54: Úhrada za záujmovú činnosť v eurách/1 mesiac | E54: Úhrada za upratovanie, pranie,... v eurách/1mesiac | F54: Úhrada za pomoc pri odkázanosti v eurách/1 mesiac | G54: Spolu úhrada/1 mesiac v eurách
A55: 28 | B55: =B52*A55 -> 271.6 | C55: =C52*A55 -> 168 | D55: =D52*A55 -> 123.2 | E55: =E52*A55 -> 86.8 | F55: =F52*A55 -> 159.6 | G55: =SUM(B55:F55) -> 809.2
A56: 29 | B56: =B52*A56 -> 281.3 | C56: =C52*A56 -> 174 | D56: =D52*A56 -> 127.6 | E56: =E52*A56 -> 89.9 | F56: =F52*A56 -> 165.3 | G56: =SUM(B56:F56) -> 838.1
A57: 30 | B57: =B52*A57 -> 291 | C57: =C52*A57 -> 180 | D57: =D52*A57 -> 132 | E57: =E52*A57 -> 93 | F57: =F52*A57 -> 171 | G57: =SUM(B57:F57) -> 867
A58: 31 | B58: =B52*A58 -> 300.7 | C58: =C52*A58 -> 186 | D58: =D52*A58 -> 136.4 | E58: =E52*A58 -> 96.1 | F58: =F52*A58 -> 176.7 | G58: =SUM(B58:F58) -> 895.9
A62: schválil: Mgr. Igor Sklinár

Sheet cenník ŠZ
A1: Cenník sociálnej služby ŠZ
A3: Klient ubytovaný v dvojposteľovej izbe
B5: Denná úhrada za stravovanie v eurách / racionálna strava | C5: Denná úhrada za ubytovanie v eurách | D5: Denná úhrada za záujmovú činnosť v eurách | E5: Denná úhrada za upratovanie, pranie,... v eurách | F5: Denná úhrada za pomoc pri odkázanosti | G5: Spolu úhrada/1deň v eurách
B6: 5 | C6: 2.4 | D6: 2.5 | E6: 1.5 | F6: 2.7 | G6: =SUM(B6:F6) -> 14.1
A8: Počet dní v mesiaci | B8: Úhrada za stravovanie v eurách/1mesiac | C8: Úhrada za ubytovanie v eurách/1 mesiac | D8: Úhrada za záujmovú činnosť v eurách/1 mesiac | E8: Úhrada za upratovanie, pranie,... v eurách/1mesiac | F8: Úhrada za pomoc pri odkázanosti v eurách/1 mesiac | G8: Spolu úhrada/1 mesiac v eurách
A9: 28 | B9: =B6*A9 -> 140 | C9: =C6*A9 -> 67.2 | D9: =D6*A9 -> 70 | E9: =E6*A9 -> 42 | F9: =F6*A9 -> 75.6 | G9: =SUM(B9:F9) -> 394.8
A10: 29 | B10: =B6*A10 -> 145 | C10: =C6*A10 -> 69.6 | D10: =D6*A10 -> 72.5 | E10: =E6*A10 -> 43.5 | F10: =F6*A10 -> 78.3 | G10: =SUM(B10:F10) -> 408.9
A11: 30 | B11: =B6*A11 -> 150 | C11: =C6*A11 -> 72 | D11: =D6*A11 -> 75 | E11: =E6*A11 -> 45 | F11: =F6*A11 -> 81 | G11: =SUM(B11:F11) -> 423
A12: 31 | B12: =B6*A12 -> 155 | C12: =C6*A12 -> 74.4 | D12: =D6*A12 -> 77.5 | E12: =E6*A12 -> 46.5 | F12: =F6*A12 -> 83.7 | G12: =SUM(B12:F12) -> 437.1
A14: Klient ubytovaný v dvojposteľovej izbe / diabetická strava
B16: Denná úhrada za stravovanie v eurách/ diabetická strava | C16: Denná úhrada za ubytovanie v eurách | D16: Denná úhrada za záujmovú činnosť v eurách | E16: Denná úhrada za upratovanie, pranie,... v eurách | F16: Denná úhrada za pomoc pri odkázanosti | G16: Spolu úhrada/1deň v eurách
B17: 6 | C17: 2.4 | D17: 2.5 | E17: 1.5 | F17: 2.7 | G17: =SUM(B17:F17) -> 15.1
A19: Počet dní v mesiaci | B19: Úhrada za stravovanie v eurách/1mesiac | C19: Úhrada za ubytovanie v eurách/1 mesiac | D19: Úhrada za záujmovú činnosť v eurách/1 mesiac | E19: Úhrada za upratovanie, pranie,... v eurách/1mesiac | F19: Úhrada za pomoc pri odkázanosti v eurách/1 mesiac | G19: Spolu úhrada/1 mesiac v eurách
A20: 28 | B20: =B17*A20 -> 168 | C20: =C17*A20 -> 67.2 | D20: =D17*A20 -> 70 | E20: =E17*A20 -> 42 | F20: =F17*A20 -> 75.6 | G20: =SUM(B20:F20) -> 422.8
A21: 29 | B21: =B17*A21 -> 174 | C21: =C17*A21 -> 69.6 | D21: =D17*A21 -> 72.5 | E21: =E17*A21 -> 43.5 | F21: =F17*A21 -> 78.3 | G21: =SUM(B21:F21) -> 437.9
A22: 30 | B22: =B17*A22 -> 180 | C22: =C17*A22 -> 72 | D22: =D17*A22 -> 75 | E22: =E17*A22 -> 45 | F22: =F17*A22 -> 81 | G22: =SUM(B22:F22) -> 453
A23: 31 | B23: =B17*A23 -> 186 | C23: =C17*A23 -> 74.4 | D23: =D17*A23 -> 77.5 | E23: =E17*A23 -> 46.5 | F23: =F17*A23 -> 83.7 | G23: =SUM(B23:F23) -> 468.1
A25: Klient ubytovaný v trojposteľovej izbe
B27: Denná úhrada za stravovanie v eurách | C27: Denná úhrada za ubytovanie v eurách | D27: Denná úhrada za záujmovú činnosť v eurách | E27: Denná úhrada za upratovanie, pranie,... v eurách | F27: Denná úhrada za pomoc pri odkázanosti | G27: Spolu úhrada/1deň v eurách
B28: 5 | C28: 2.1 | D28: 2.5 | E28: 1.5 | F28: 2.7 | G28: =SUM(B28:F28) -> 13.8
A30: Počet dní v mesiaci | B30: Úhrada za stravovanie v eurách/1mesiac | C30: Úhrada za ubytovanie v eurách/1 mesiac | D30: Úhrada za záujmovú činnosť v eurách/1 mesiac | E30: Úhrada za upratovanie, pranie,... v eurách/1mesiac | F30: Úhrada za pomoc pri odkázanosti v eurách/1 mesiac | G30: Spolu úhrada/1 mesiac v eurách
A31: 28 | B31: =B28*A31 -> 140 | C31: =C28*A31 -> 58.8 | D31: =D28*A31 -> 70 | E31: =E28*A31 -> 42 | F31: =F28*A31 -> 75.6 | G31: =SUM(B31:F31) -> 386.4
A32: 29 | B32: =B28*A32 -> 145 | C32: =C28*A32 -> 60.9 | D32: =D28*A32 -> 72.5 | E32: =E28*A32 -> 43.5 | F32: =F28*A32 -> 78.3 | G32: =SUM(B32:F32) -> 400.2
A33: 30 | B33: =B28*A33 -> 150 | C33: =C28*A33 -> 63 | D33: =D28*A33 -> 75 | E33: =E28*A33 -> 45 | F33: =F28*A33 -> 81 | G33: =SUM(B33:F33) -> 414
A34: 31 | B34: =B28*A34 -> 155 | C34: =C28*A34 -> 65.1 | D34: =D28*A34 -> 77.5 | E34: =E28*A34 -> 46.5 | F34: =F28*A34 -> 83.7 | G34: =SUM(B34:F34) -> 427.8
